bitfinex/quotes_ETHUSD_20241231
["timestamp","ask_amount","ask_price","bid_price","bid_amount"]
[1735686565979,0.7523,3341.1,3340.4,3.34350311]
[1735686566324,0.7523,3341.1,3340.5,2.99355]
[1735686567438,0.7523,3341.1,3340.4,0.34992311]
[1735686567741,0.7523,3341.1,3340.6,2.99346]
[1735686568094,0.761,3341.4,3340.4,0.832]
[1735686568318,0.761,3341.4,3341.1,2.99297]
[1735686569437,1.25653913,3341.6,3341.5,2.99266]
[1735686570000,3.8811111,3342.0,3341.2,3.292167]
[1735686570001,2.01753913,3342.0,3341.6,2.99257]
[1735686570322,2.01753913,3342.0,3341.2,3.292167]
[1735686570488,1.25653913,3342.0,3341.9,2.9923]
[1735686570695,1.25653913,3342.0,3341.9,3.29153]
[1735686570905,1.25653913,3342.0,3341.9,2.9923]
[1735686571415,0.761,3342.3,3341.9,2.9923]
[1735686571586,0.761,3342.3,3342.0,2.99221]
[1735686571787,0.03362527,3342.2,3342.0,2.99221]
[1735686572343,0.03362527,3342.2,3342.1,2.99213]
[1735686572542,1.25653913,3342.5,3342.1,2.99213]
[1735686572687,0.7844,3342.9,3342.1,2.99213]
[1735686572891,0.03306356,3342.4,3342.3,6.75425]
[1735686573147,1.25653913,3343.0,3342.8,2.99148]
[1735686573322,1.25653913,3343.0,3342.9,2.99141]
[1735686574543,1.88475918,3343.1,3342.9,2.99141]
[1735686574698,0.7844,3343.7,3342.9,2.99141]
[1735686575760,0.7844,3343.7,3342.7,2.99157]
[1735686576046,1.25653913,3343.8,3342.3,2.99193]
[1735686576047,0.7844,3343.4,3342.3,2.99193]
[1735686576246,0.7844,3343.3,3342.3,2.99193]
[1735686577095,2.18680179,3343.2,3342.3,2.99193]
[1735686577974,2.18680179,3343.2,3342.4,2.99184]
[1735686578114,0.7844,3343.3,3341.9,0.7623]
[1735686578313,0.7844,3343.3,3342.6,2.99159]
[1735686578733,0.7844,3343.3,3342.7,2.99156]
[1735686581301,0.7844,3343.3,3342.2,3.0]
[1735686581535,0.7844,3343.3,3342.5,2.99173]
[1735686581733,1.38059818,3343.3,3342.5,2.99173]
[1735686581897,0.7844,3343.3,3342.7,2.99157]
[1735686582104,0.7844,3343.3,3342.3,2.99195]
[1735686582747,0.7844,3343.3,3343.0,2.99127]
[1735686583175,0.7844,3343.7,3343.0,2.99127]
[1735686583415,0.02821706,3343.6,3343.0,2.99127]
[1735686585869,0.02821706,3343.6,3343.2,2.9911]
[1735686586319,0.7844,3343.7,3343.2,2.9911]
[1735686586620,0.02815401,3343.7,3343.6,2.99076]
[1735686586767,0.7844,3344.3,3343.6,2.99076]
[1735686586966,0.02847168,3344.2,3343.7,0.7623]
[1735686587171,0.02847168,3344.2,3343.8,2.99058]
[1735686587371,0.7844,3344.3,3343.5,0.7729]
[1735686587627,0.02816555,3344.2,3343.9,2.9905]
[1735686588073,0.7844,3344.3,3343.9,2.9905]
[1735686588274,0.02654269,3344.1,3343.9,2.9905]
[1735686588474,0.7844,3344.3,3344.0,2.99043]
[1735686588687,0.1650179,3344.4,3344.0,2.99043]
[1735686591118,0.1650179,3344.4,3343.9,0.29905]
[1735686591326,0.1650179,3344.4,3343.8,2.99057]
[1735686591819,0.1650179,3344.4,3344.0,2.99037]
[1735686592018,0.1650179,3344.4,3344.1,2.9903]
[1735686593078,0.1650179,3344.4,3344.3,2.99016]
[1735686594576,0.1650179,3344.4,3344.3,5.99016]
[1735686594776,0.1650179,3344.4,3344.3,6.965499]
[1735686597928,0.1650179,3344.4,3344.3,7.515499]
[1735686598081,7.9e-06,3344.4,3344.3,8.288399]
[1735686602035,7.9e-06,3344.4,3344.3,6.965499]
[1735686602203,7.9e-06,3344.4,3344.3,0.975339]
[1735686602529,0.02950247,3344.4,3344.1,2.99031]
[1735686602733,7.9e-06,3344.4,3344.1,2.99031]
[1735686602935,7.9e-06,3344.4,3343.9,2.99048]
[1735686602936,0.02944192,3344.3,3343.9,2.99048]
[1735686603834,0.02944192,3344.3,3343.6,0.7729]
[1735686603835,0.02944192,3344.3,3344.0,5.99039]
[1735686604131,7.9e-06,3344.4,3344.3,2.99016]
[1735686605545,7.9e-06,3344.4,3344.0,0.599039]
[1735686605726,0.8186,3344.3,3344.0,3.0]
[1735686605906,0.8186,3344.3,3343.6,5.99078]
[1735686606098,0.0293072,3344.2,3344.1,2.99032]
[1735686606518,0.0293072,3344.2,3343.3,5.17784179]
[1735686606519,7.9e-06,3344.4,3344.2,2.99021]
[1735686607092,0.02958102,3344.3,3344.2,3.289231]
[1735686607353,7.9e-06,3344.4,3344.2,0.299021]
[1735686607494,7.9e-06,3344.4,3344.0,3.0]
[1735686607888,7.9e-06,3344.4,3344.0,2.99041]
[1735686608107,0.02950385,3344.3,3344.0,2.99041]
[1735686608507,0.02950385,3344.3,3344.1,2.99032]
[1735686608714,7.9e-06,3344.4,3344.3,2.99016]
[1735686609021,7.9e-06,3344.4,3344.1,0.299032]
[1735686609022,0.02956361,3344.4,3344.1,3.289282]
[1735686609204,7.9e-06,3344.4,3344.1,3.289282]
[1735686609426,7.9e-06,3344.4,3343.9,3.0]
[1735686610008,0.0293024,3344.3,3343.9,3.0]
[1735686610224,0.0293024,3344.3,3343.9,2.99051]
[1735686610560,0.8186,3344.2,3343.3,2.991]
[1735686610907,0.02939453,3344.1,3343.5,3.0]
[1735686611260,0.02939453,3344.1,3343.8,2.99058]
[1735686611462,0.02939453,3344.1,3344.0,2.99043]
[1735686611623,0.8186,3344.2,3343.8,3.0]
[1735686611823,0.8186,3344.2,3344.1,2.99034]
[1735686612569,0.8186,3344.2,3343.6,3.0]
[1735686612727,7.9e-06,3344.4,3344.1,2.99034]
[1735686613066,0.02941744,3344.3,3344.1,2.99034]
[1735686613457,7.9e-06,3344.4,3344.1,2.99034]
[1735686614005,0.02919521,3344.3,3344.1,2.99034]
[1735686614165,7.9e-06,3344.4,3344.1,2.99034]
[1735686614366,0.02919521,3344.3,3344.1,2.99034]
[1735686614703,7.9e-06,3344.4,3344.1,2.99034]
[1735686615070,0.02926919,3344.3,3344.1,2.99034]
[1735686615365,0.02926919,3344.3,3344.2,2.99025]
[1735686615572,7.9e-06,3344.4,3344.2,2.99025]
[1735686616266,7.9e-06,3344.4,3344.3,2.99016]
[1735686617156,7.9e-06,3344.4,3344.2,0.299025]
[1735686617473,0.02875959,3344.3,3344.1,2.9903]
[1735686618008,7.9e-06,3344.4,3344.1,2.9903]
[1735686618310,0.02875959,3344.3,3344.1,2.9903]
[1735686618458,0.02875959,3344.3,3343.8,0.7705]
[1735686618459,0.02875959,3344.3,3344.2,2.99025]
[1735686618660,7.9e-06,3344.4,3344.2,2.99025]
[1735686619216,0.02887055,3344.3,3344.2,2.99025]
[1735686619416,7.9e-06,3344.4,3344.2,2.99025]
[1735686619696,0.02887055,3344.3,3344.2,2.99025]
[1735686620001,7.9e-06,3344.4,3344.2,2.99025]
[1735686620202,0.02887055,3344.3,3344.0,2.9904]
[1735686620506,0.02887055,3344.3,3343.8,2.9906]
[1735686620718,0.7855,3344.2,3343.8,2.9906]
[1735686621311,0.02876684,3344.1,3343.8,2.9906]
[1735686622014,0.02876684,3344.1,3343.0,0.299127]
[1735686622015,0.7855,3344.0,3343.0,0.299127]
[1735686622218,0.7855,3344.0,3342.8,0.75]
[1735686622219,0.02874511,3343.9,3342.7,2.99158]
[1735686622419,0.7855,3343.8,3342.9,2.99138]
[1735686622719,0.81404861,3343.7,3342.6,1.2576112]
[1735686622853,0.7855,3343.5,3342.7,2.99156]
[1735686623058,0.02827642,3343.4,3342.8,2.99149]
[1735686623490,0.02827642,3343.4,3342.4,3.0]
[1735686623773,0.7855,3343.5,3342.9,2.99139]
[1735686623975,0.02792259,3343.4,3342.9,2.99139]
[1735686624387,0.7855,3343.5,3342.9,2.99139]
[1735686624609,0.02787009,3343.4,3342.9,3.290539]
[1735686624806,0.7855,3343.5,3343.2,2.99106]
[1735686625023,0.02783951,3343.4,3343.0,2.99129]
[1735686625314,0.7855,3343.9,3343.5,2.99084]
[1735686625656,0.0280086,3343.8,3343.5,2.99084]
[1735686627474,0.0280086,3343.8,3343.4,2.99095]
[1735686628611,0.0280086,3343.8,3343.6,2.99077]
[1735686628920,0.7855,3343.9,3343.6,2.99077]
[1735686629224,0.02059806,3343.8,3343.4,3.889108]
[1735686629391,0.02717459,3343.8,3343.4,3.889108]
[1735686630769,0.02717459,3343.8,3343.2,2.99109]
[1735686631232,0.02717459,3343.8,3342.8,2.99149]
[1735686631233,0.02717459,3343.8,3343.4,2.99088]
[1735686631914,0.05707587,3343.8,3343.4,2.99088]
[1735686633334,0.05707587,3343.8,3343.7,2.99069]
[1735686633692,2.05483913,3344.3,3343.9,2.99049]
[1735686634539,0.7983,3344.3,3343.9,2.99049]
[1735686635362,0.7983,3344.3,3343.7,2.99065]
[1735686635492,0.7983,3344.3,3343.8,2.9906]
[1735686636737,0.7983,3344.3,3343.8,2.9406]
[1735686637207,0.7983,3344.3,3343.2,0.8003]
[1735686637390,0.7983,3344.3,3343.4,2.99094]
[1735686637594,0.7983,3344.3,3343.6,2.99071]
[1735686638791,0.7983,3344.3,3343.3,0.679156]
[1735686638995,7.9e-06,3344.4,3343.4,0.8003]
[1735686639194,7.9e-06,3344.4,3344.2,2.99024]
[1735686639437,1.25653913,3344.3,3344.2,2.99024]
[1735686640760,1.25653913,3344.3,3343.5,2.99087]
[1735686640964,7.9e-06,3344.4,3343.5,2.99087]
[1735686640965,7.9e-06,3344.4,3344.0,2.99041]
[1735686641103,7.9e-06,3344.4,3343.6,3.7377826]
[1735686641104,7.9e-06,3344.4,3344.1,2.99028]
[1735686642102,7.9e-06,3344.4,3343.6,0.7470326]
[1735686642458,7.9e-06,3344.4,3343.7,2.99062]
[1735686644618,0.7983,3344.3,3343.3,3.0]
[1735686644922,0.7983,3344.3,3343.5,2.99084]
[1735686645874,0.7983,3344.3,3343.6,2.99074]
[1735686646614,1.4195181,3344.2,3343.6,2.99074]
[1735686646819,0.05567206,3344.1,3343.6,2.99074]
[1735686647464,0.05567206,3344.1,3343.6,0.599074]
[1735686647626,0.05567206,3344.1,3343.7,0.7846]
[1735686648275,0.05567206,3344.1,3343.9,2.99046]
[1735686649553,7.9e-06,3344.4,3343.9,2.99046]
[1735686649772,0.05557865,3344.0,3343.9,2.99046]
[1735686649968,7.9e-06,3344.4,3343.9,2.99046]
[1735686650141,0.05557865,3344.0,3343.9,2.99046]
[1735686650341,1.25654703,3344.4,3343.9,2.99046]
[1735686650845,0.05573157,3344.3,3343.9,2.99046]
[1735686652077,0.05573157,3344.3,3343.3,3.75464]
[1735686652281,0.05573157,3344.3,3343.8,2.99057]
[1735686652610,0.05573157,3344.3,3343.4,0.375464]
[1735686652772,0.05573157,3344.3,3344.0,2.99037]
[1735686652969,0.05573157,3344.3,3343.4,0.375464]
[1735686653174,0.05573157,3344.3,3344.0,2.99037]
[1735686656287,0.05573157,3344.3,3343.4,0.375464]
[1735686656617,0.05573157,3344.3,3344.2,2.99025]
[1735686656819,0.05573157,3344.3,3344.2,3.75385]
[1735686658413,0.05573157,3344.3,3344.2,6.75385]
[1735686658594,7.9e-06,3344.4,3344.3,3.0]
[1735686658807,0.05212842,3344.4,3344.3,5.99016]
[1735686659101,8.42e-06,3344.4,3344.3,8.79588318]
[1735686659288,1.18e-06,3344.4,3344.3,8.79588318]
[1735686659528,1.12e-06,3344.4,3344.3,8.79588318]
[1735686659735,5.25e-06,3344.8,3344.7,2.9898]
[1735686659937,5.25e-06,3344.8,3344.7,6.642778]
[1735686660114,5.25e-06,3345.2,3345.1,2.98944]
[1735686661648,0.7614,3345.3,3345.1,2.98944]
[1735686662342,0.7614,3345.3,3344.9,2.98956]
[1735686663149,1.88475918,3345.9,3345.0,2.98953]
[1735686663448,0.7972,3345.8,3344.3,2.32312318]
[1735686663651,0.7972,3345.8,3344.9,2.9896]
[1735686664861,1.88475918,3345.7,3344.4,0.55]
[1735686664996,1.88475918,3345.7,3345.3,2.98919]
[1735686665196,1.88475918,3345.7,3345.4,2.98916]
[1735686665493,1.88475918,3345.7,3345.5,2.98907]
[1735686666113,1.88475918,3345.7,3345.6,2.989]
[1735686666351,0.7972,3345.8,3345.6,2.989]
[1735686666996,0.7972,3345.8,3345.7,2.98891]
[1735686667419,1.88475918,3346.0,3345.7,0.298891]
[1735686667711,6.55495733,3346.9,3345.2,3.0]
[1735686667712,1.88475918,3346.4,3345.5,0.8166]
[1735686667944,1.88475918,3346.4,3346.3,2.98837]
[1735686668128,1.88475918,3346.4,3346.3,5.98837]
[1735686668297,0.8219,3346.3,3345.3,3.80586]
[1735686668503,0.8219,3346.3,3345.4,0.380586]
[1735686668725,0.8219,3346.3,3345.9,2.98868]
[1735686669110,0.8219,3346.3,3346.0,2.98857]
[1735686670241,0.8219,3346.3,3345.8,2.98879]
[1735686670465,0.8219,3346.3,3345.3,0.8166]
[1735686670466,0.8219,3346.3,3345.6,2.98897]
[1735686671342,1.42158318,3346.3,3345.6,2.98897]
[1735686673847,1.42158318,3346.3,3345.0,3.8166]
[1735686674046,0.8219,3346.3,3345.8,2.98878]
[1735686676308,0.8219,3346.3,3345.7,2.98888]
[1735686677048,0.04477684,3346.2,3345.7,2.98888]
[1735686680385,0.04477684,3346.2,3345.4,0.8328]
[1735686680595,0.04477684,3346.2,3346.1,2.98855]
[1735686680940,0.7606,3346.6,3346.1,2.98855]
[1735686681060,0.04474522,3346.2,3346.1,2.98855]
[1735686681267,0.7606,3346.6,3346.1,2.98855]
[1735686681575,0.04489793,3346.5,3345.8,0.8328]
[1735686681774,0.04489793,3346.5,3346.4,2.98828]
[1735686682296,1.25135982,3346.7,3346.4,2.98828]
[1735686682604,0.04318991,3346.6,3346.4,2.98828]
[1735686683089,0.7606,3347.0,3346.4,2.98828]
[1735686683090,0.04317544,3346.5,3346.4,2.98828]
[1735686683311,0.7606,3347.0,3346.4,2.98828]
[1735686683465,0.7606,3347.0,3346.1,2.9885]
[1735686683466,0.7606,3347.0,3346.5,2.98816]
[1735686685709,0.7606,3347.3,3346.5,1.131616]
[1735686685856,0.7606,3347.3,3346.6,2.9881]
[1735686686062,0.7606,3347.3,3346.8,2.98789]
[1735686688957,0.7606,3347.3,3346.5,2.98811]
[1735686689398,0.7606,3347.2,3346.3,2.98834]
[1735686689558,0.29474018,3347.1,3346.3,2.98834]
[1735686689758,0.29474018,3347.1,3346.4,2.98828]
[1735686691975,0.80393162,3347.0,3346.2,2.98841]
[1735686692177,0.7606,3346.9,3346.0,2.98855]
[1735686692493,0.84841664,3346.8,3346.0,2.98855]
[1735686694410,0.8044,3346.6,3345.5,1.4409]
[1735686694585,2.98812,3346.6,3345.7,2.98889]
[1735686694913,0.84826103,3346.5,3345.7,2.98889]
[1735686695081,3.83647103,3346.5,3345.5,6.67124]
[1735686695291,0.8044,3346.4,3345.5,6.67124]
[1735686695481,0.04375925,3346.3,3345.5,6.67124]
[1735686695683,0.04375925,3346.3,3345.6,2.98898]
[1735686696743,0.8044,3345.9,3344.9,0.7587]
[1735686696945,2.18680179,3345.7,3344.8,2.98965]
[1735686697103,0.8044,3345.6,3344.3,0.7587]
[1735686697305,0.8044,3345.6,3344.9,0.7587]
[1735686697502,0.0431344,3345.5,3344.5,3.27720232]
[1735686697807,0.8044,3345.6,3344.9,2.9896]
[1735686698220,0.04302746,3345.5,3344.9,2.9896]
[1735686699320,0.04302746,3345.5,3344.9,3.58856]
[1735686704325,0.04302746,3345.5,3344.7,2.98979]
[1735686704665,0.04302746,3345.5,3344.8,3.0]
[1735686705707,0.04302746,3345.5,3344.8,2.98969]
[1735686706005,0.04302746,3345.5,3344.9,2.98961]
[1735686706569,0.04302746,3345.5,3345.2,2.98927]
[1735686707068,0.04302746,3345.5,3344.9,2.98955]
[1735686707277,0.04302746,3345.5,3344.6,2.98989]
[1735686707480,0.04302746,3345.5,3345.1,2.98944]
[1735686707677,0.04302746,3345.5,3344.5,1.04601232]
[1735686708038,0.04302746,3345.5,3345.3,2.98925]
[1735686709234,0.04302746,3345.5,3345.1,2.98942]
[1735686709381,0.04302746,3345.5,3345.2,2.98932]
[1735686710737,0.04302746,3345.5,3344.9,2.98958]
[1735686712239,0.04302746,3345.5,3344.7,2.98976]
[1735686712381,0.7753,3345.4,3344.7,2.98976]
[1735686713024,0.04256494,3345.3,3344.7,2.98976]
[1735686713608,0.04256494,3345.3,3344.5,3.27727232]
[1735686713923,0.7753,3345.2,3344.4,2.98998]
[1735686714295,0.7753,3345.2,3344.4,3.0]
[1735686714499,0.7753,3345.0,3344.4,3.0]
[1735686714846,0.04227758,3344.9,3344.4,3.0]
[1735686715522,0.04227758,3344.9,3343.9,0.55]
[1735686715681,0.04227758,3344.9,3344.8,2.98971]
[1735686715885,2.02665982,3345.3,3344.6,2.98984]
[1735686716094,0.04213398,3345.2,3344.6,2.98984]
[1735686716317,0.04213398,3345.2,3344.2,0.7569]
[1735686716499,0.04213398,3345.2,3345.0,2.98945]
[1735686716682,0.7753,3345.3,3345.0,2.98945]
[1735686717112,0.04218705,3345.2,3345.0,2.98945]
[1735686717312,0.7753,3345.3,3345.0,2.98945]
[1735686717528,0.04215591,3345.2,3345.0,2.98945]
[1735686717749,0.7753,3345.3,3344.6,2.98981]
[1735686717889,0.7753,3345.1,3344.0,0.57368018]
[1735686718224,0.81735484,3345.0,3344.1,2.99031]
[1735686718608,0.7753,3344.9,3343.9,2.99044]
[1735686718812,0.7753,3344.7,3343.9,2.99044]
[1735686719038,0.7753,3344.5,3343.5,2.99082]
[1735686719227,0.7753,3344.5,3343.5,0.673886]
[1735686719421,0.7753,3344.3,3343.5,0.673886]
[1735686719832,0.04085533,3344.2,3344.0,2.99036]
[1735686720054,0.7753,3344.3,3344.0,2.99036]
[1735686720355,0.04077099,3344.2,3344.1,2.99032]
[1735686720505,0.7753,3345.0,3344.1,3.289352]
[1735686720506,0.7753,3344.6,3344.1,3.289352]
[1735686720707,0.04096038,3344.5,3344.1,2.99032]
[1735686722366,0.8056,3344.4,3343.7,2.99065]
[1735686722656,2.98983,3344.7,3344.2,2.99025]
[1735686722657,0.04088887,3344.3,3344.2,2.99025]
[1735686722877,0.04088887,3344.3,3344.2,3.365355]
[1735686723019,1.25135982,3345.0,3344.2,3.365355]
[1735686723020,1.25135982,3344.8,3344.7,2.98979]
[1735686723422,1.29200964,3344.8,3344.7,2.98979]
[1735686723648,1.29200964,3344.8,3344.5,2.98991]
[1735686723848,1.29200964,3344.8,3344.7,2.9898]
[1735686724420,0.04064982,3344.8,3344.7,2.9898]
[1735686724665,0.04064982,3344.8,3344.5,2.9899]
[1735686724867,0.8056,3345.0,3344.5,2.9899]
[1735686725059,0.04102321,3344.7,3344.5,2.9899]
[1735686725283,0.8056,3345.0,3344.5,2.9899]
[1735686725765,0.0411557,3344.9,3344.5,2.9899]
[1735686726582,0.0411557,3344.9,3344.5,0.3365005]
[1735686726902,0.0411557,3344.9,3344.3,0.7608]
[1735686727209,0.8056,3345.4,3344.3,3.7608]
[1735686727495,0.04122954,3344.8,3344.7,2.98979]
[1735686727654,0.8056,3345.4,3344.3,3.7608]
[1735686727857,0.8056,3345.4,3344.9,2.98962]
[1735686728223,0.8056,3345.4,3345.0,2.98951]
[1735686728224,0.04180783,3345.3,3345.0,2.98951]
[1735686728518,0.04180783,3345.3,3345.2,2.98935]
[1735686728657,0.04180783,3345.3,3345.2,5.98935]
[1735686728971,1.25135982,3345.9,3345.7,2.98884]
[1735686729170,0.04213413,3345.8,3345.2,3.0]
[1735686729357,0.04213413,3345.8,3345.7,2.98891]
[1735686730499,0.8056,3346.1,3345.7,2.98891]
[1735686730654,0.8056,3346.1,3345.8,2.9888]
[1735686732058,0.8056,3346.1,3345.6,2.98896]
[1735686732586,0.8056,3346.1,3345.4,2.9891]
[1735686732768,0.8056,3346.1,3345.7,2.9889]
[1735686732975,0.8056,3346.1,3345.8,2.98876]
[1735686733742,0.8056,3346.5,3346.2,2.98846]
[1735686734529,0.8056,3346.5,3346.0,2.98856]
[1735686736141,0.8056,3346.5,3346.1,2.98853]
[1735686736836,0.04226281,3346.4,3346.1,2.98853]
[1735686739313,0.04226281,3346.4,3345.8,2.98879]
[1735686739510,0.04226281,3346.4,3346.1,2.98847]
[1735686739748,1.25135982,3346.7,3346.1,2.98847]
[1735686739947,0.0425707,3346.6,3346.1,2.98847]
[1735686740916,2.00325982,3346.8,3346.1,2.98847]
[1735686741117,0.0426216,3346.7,3346.1,2.98847]
[1735686741419,0.0426216,3346.7,3346.2,2.98843]
[1735686745062,0.0426216,3346.7,3346.2,3.370173]
[1735686745229,0.0426216,3346.7,3346.5,2.98819]
[1735686745433,0.0426216,3346.7,3346.2,0.381743]
[1735686745617,0.0426216,3346.7,3346.6,2.9881]
[1735686746122,2.00325982,3347.1,3346.7,2.98799]
[1735686746837,0.7519,3347.1,3346.7,2.98799]
[1735686747144,0.7519,3347.1,3346.1,0.829]
[1735686747320,0.7519,3347.1,3346.3,2.98833]
[1735686747516,0.7519,3347.0,3346.3,2.98833]
[1735686748142,0.7519,3347.0,3345.9,5.98868]
[1735686748463,0.7519,3347.0,3346.2,2.98838]
[1735686748762,0.90622708,3347.1,3345.9,2.98865]
[1735686748763,0.7519,3346.8,3345.9,2.98865]
[1735686749161,0.7519,3346.8,3346.0,2.98862]
[1735686751277,1.74879079,3346.8,3346.0,2.98862]
[1735686751777,0.04389878,3346.7,3346.0,2.98862]
[1735686752188,0.04389878,3346.7,3345.6,2.989]
[1735686752343,0.04389878,3346.7,3345.5,0.829]
[1735686752344,0.04389878,3346.7,3346.1,2.98855]
[1735686754377,0.04389878,3346.7,3346.3,2.98828]
[1735686754577,0.04389878,3346.7,3346.4,2.98826]
[1735686754784,0.04389878,3346.7,3346.3,0.298828]
[1735686755079,1.25135982,3347.0,3346.2,0.55]
[1735686755282,1.25135982,3347.0,3346.9,2.98783]
[1735686756469,2.18680179,3347.7,3346.9,2.98783]
[1735686756470,0.8318,3347.4,3346.9,2.98783]
[1735686756984,0.8318,3347.4,3346.7,0.7713]
[1735686757185,0.8318,3347.4,3347.0,2.98774]
[1735686757480,0.8318,3347.4,3347.2,2.98754]
[1735686757686,2.25024782,3347.8,3347.3,2.98744]
[1735686758743,2.25024782,3347.8,3347.1,2.98758]
[1735686759059,0.998888,3347.8,3347.1,2.98758]
[1735686759520,0.8318,3347.7,3346.9,2.98776]
[1735686759806,0.8318,3347.6,3346.9,2.98782]
[1735686763200,0.8318,3347.6,3346.5,2.98819]
[1735686763201,0.8318,3347.6,3346.7,2.98798]
[1735686763420,0.8318,3347.5,3346.7,2.98798]
[1735686763563,0.8318,3347.3,3346.4,2.98821]
[1735686764436,0.8318,3347.3,3346.5,2.98817]
[1735686765009,0.8318,3347.3,3346.7,2.98797]
[1735686766377,0.8318,3347.3,3346.8,2.98792]
[1735686766850,0.04525455,3347.2,3346.8,2.98792]
[1735686767316,0.8318,3347.3,3346.8,2.98792]
[1735686767656,0.04527385,3347.2,3346.8,2.98792]
[1735686768012,0.8318,3347.3,3346.8,2.98792]
[1735686768215,0.04527385,3347.2,3346.8,2.98792]
[1735686768628,0.8318,3347.3,3346.6,2.98804]
[1735686768955,0.04524762,3347.2,3346.7,2.98801]
[1735686769720,0.04524762,3347.2,3346.8,2.98792]
[1735686769926,0.04524762,3347.2,3346.5,3.0]
[1735686769927,0.8318,3347.3,3346.9,2.98783]
[1735686770108,0.04522848,3347.2,3346.9,2.98783]
[1735686770507,0.04519524,3347.1,3346.7,2.98796]
[1735686770724,0.8318,3347.3,3346.7,2.98796]
[1735686771129,0.04526378,3347.2,3346.7,2.98796]
[1735686771457,0.04526378,3347.2,3346.8,2.9879]
[1735686771748,0.8318,3347.3,3346.8,2.9879]
[1735686771950,0.04529206,3347.2,3346.8,2.9879]
[1735686772151,0.8318,3347.3,3346.8,2.9879]
[1735686772351,0.04529206,3347.2,3346.8,2.9879]
[1735686772760,0.8318,3347.3,3346.8,2.9879]
[1735686773050,0.04529206,3347.2,3346.8,2.9879]
[1735686773554,0.04514228,3347.1,3346.8,2.9879]
[1735686773713,0.8318,3347.3,3346.8,2.9879]
[1735686773916,1.04011598,3347.3,3346.8,2.9879]
[1735686774147,0.04522903,3347.2,3346.8,2.9879]
[1735686774358,0.8318,3347.3,3346.8,2.9879]
[1735686774527,0.04524668,3347.2,3346.8,2.9879]
[1735686774731,0.8318,3347.3,3346.8,2.9879]
[1735686774946,0.04524668,3347.2,3346.8,2.9879]
[1735686775147,0.8318,3347.3,3346.8,2.9879]
[1735686775657,0.04526434,3347.2,3346.8,2.9879]
[1735686776067,0.8318,3347.3,3346.8,2.9879]
[1735686776355,0.04529206,3347.2,3346.8,2.9879]
[1735686776561,0.8318,3347.3,3346.8,2.9879]
[1735686776921,0.04523761,3347.2,3346.8,2.9879]
[1735686777141,0.8318,3347.3,3346.8,2.9879]
[1735686777344,0.04523761,3347.2,3346.8,2.9879]
[1735686777677,2.08315982,3347.3,3346.8,2.9879]
[1735686777824,0.04509032,3347.1,3346.8,2.9879]
[1735686778020,0.04514121,3347.2,3346.8,2.9879]
[1735686778360,0.04509032,3347.1,3346.8,2.9879]
[1735686778567,2.08315982,3347.3,3346.8,2.9879]
[1735686778856,0.04514121,3347.2,3346.4,2.98824]
[1735686779061,0.04514121,3347.2,3346.7,2.988]
[1735686780565,1.29650103,3347.2,3346.7,2.988]
[1735686780863,0.756,3347.1,3346.1,3.7657]
[1735686781053,0.756,3347.1,3346.2,2.98839]
[1735686781262,2.94280179,3346.9,3346.2,2.98839]
[1735686781551,0.756,3346.7,3346.0,2.98861]
[1735686781760,0.756,3346.7,3345.8,7.2464012]
[1735686781940,0.04523897,3346.6,3345.8,7.2464012]
[1735686782682,0.04523897,3346.6,3346.0,2.98857]
[1735686784380,1.29659879,3346.6,3346.0,2.98857]
[1735686784732,1.29659879,3346.6,3345.8,5.98879]
[1735686784939,1.29659879,3346.6,3346.2,2.98845]
[1735686786183,1.29659879,3346.6,3345.9,0.598879]
[1735686786184,1.29659879,3346.6,3346.0,0.7935]
[1735686786387,1.29659879,3346.6,3346.5,2.98819]
[1735686787340,0.04523897,3346.6,3346.5,2.98819]
[1735686788564,2.00545982,3347.1,3346.3,2.98836]
[1735686788777,2.00545982,3347.1,3347.0,2.98775]
[1735686788955,1.25135982,3347.1,3347.0,2.98775]
[1735686789956,0.7541,3347.0,3346.1,2.9885]
[1735686790172,0.7541,3347.0,3345.9,4.381089]
[1735686790366,0.7541,3347.0,3345.9,1.392379]
[1735686790572,0.7541,3346.9,3346.1,4.2461312]
[1735686790899,0.7541,3346.8,3346.1,1.2576112]
[1735686791195,0.7541,3346.7,3346.1,1.2576112]
[1735686791425,0.7541,3346.7,3346.2,0.7935]
[1735686791558,0.7541,3346.7,3346.2,2.9884]
[1735686791961,1.25135982,3346.5,3346.2,2.9884]
[1735686794464,2.67911043,3346.6,3346.2,2.9884]
[1735686795077,2.67911043,3346.6,3345.8,0.7935]
[1735686795312,2.67911043,3346.6,3346.5,2.98819]
[1735686796336,2.67911043,3346.6,3345.8,0.7935]
[1735686796619,2.67911043,3346.6,3346.3,2.98837]
[1735686796769,0.0430349,3346.5,3346.4,2.98828]
[1735686796967,2.67911043,3346.8,3346.4,0.597674]
[1735686797219,0.0431367,3346.7,3346.6,2.98805]
[1735686797981,1.29449652,3346.7,3346.6,2.98805]
[1735686798713,1.29449652,3346.7,3346.6,5.98805]
[1735686799188,0.0431367,3346.7,3346.6,5.98805]
[1735686799387,1.25135982,3347.0,3346.6,7.0248064]
[1735686799567,1.25135982,3347.0,3346.9,2.98783]
[1735686800516,1.25135982,3347.0,3346.3,0.7935]
[1735686800825,0.8173,3347.1,3346.2,2.98842]
[1735686801014,1.5114009,3347.1,3346.2,2.98842]
[1735686802241,1.25135982,3346.7,3346.2,2.98842]
[1735686803015,1.25135982,3346.7,3346.3,2.98832]
[1735686803217,1.25135982,3346.7,3346.4,2.98822]
[1735686806424,1.25135982,3346.7,3346.0,3.0]
[1735686806564,1.25135982,3346.7,3345.9,3.7817]
[1735686806565,0.8173,3346.6,3346.2,2.98837]
[1735686806769,0.8173,3346.6,3345.9,3.7817]
[1735686806770,0.8173,3346.6,3346.3,2.98835]
[1735686807520,2.06865982,3346.6,3346.3,2.98835]
[1735686808421,1.42863622,3346.5,3346.3,2.98835]
[1735686809715,1.25135982,3346.5,3346.3,2.98835]
[1735686810463,1.25135982,3346.5,3346.1,2.98849]
[1735686812000,0.04290555,3346.4,3346.1,2.98849]